fUSD/lending_fUSD_20260227
["ID","MTS","AMOUNT","RATE_DAILY","PERIOD"]
[406797118,1772199049051,-800.0,0.00040405,13]
[406797119,1772199049060,-800.0,0.00040405,13]
[406797120,1772199049070,-800.0,0.00040405,13]
[406797121,1772199049079,-800.0,0.00040405,13]
[406797122,1772199049089,-800.0,0.00040405,13]
[406797123,1772199049098,-800.0,0.00040405,13]
[406797124,1772199049112,-800.0,0.00040405,13]
[406797125,1772199049121,-800.0,0.00040405,13]
[406797126,1772199049131,-800.0,0.00040405,13]
[406797127,1772199049140,-800.0,0.00040405,13]
[406797128,1772199049150,-800.0,0.00040405,13]
[406797129,1772199049159,-800.0,0.00040405,13]
[406797130,1772199049169,-800.0,0.00040405,13]
[406797131,1772199049180,-800.0,0.00040405,13]
[406797132,1772199049189,-800.0,0.00040405,13]
[406797133,1772199049207,-800.0,0.00040405,13]
[406797134,1772199049222,-800.0,0.00040405,13]
[406797135,1772199049232,-800.0,0.00040405,13]
[406797136,1772199049241,-800.0,0.00040405,13]
[406797137,1772199049251,-800.0,0.00040405,13]
[406797138,1772199049261,-800.0,0.00040405,13]
[406797139,1772199049271,-800.0,0.00040405,13]
[406797140,1772199049280,-800.0,0.00040405,13]
[406797141,1772199049289,-800.0,0.00040405,13]
[406797142,1772199049299,-800.0,0.00040405,13]
[406797143,1772199049308,-800.0,0.00040405,13]
[406797144,1772199049317,-800.0,0.00040405,13]
[406797145,1772199049327,-800.0,0.00040405,13]
[406797146,1772199049336,-800.0,0.00040405,13]
[406797147,1772199049346,-800.0,0.00040405,13]
[406797148,1772199049355,-800.0,0.00040405,13]
[406797149,1772199049365,-800.0,0.00040405,13]
[406797150,1772199049375,-800.0,0.00040405,13]
[406797151,1772199049384,-800.0,0.00040405,13]
[406797152,1772199049393,-800.0,0.00040405,13]
[406797153,1772199049402,-800.0,0.00040405,13]
[406797154,1772199049412,-800.0,0.00040405,13]
[406797155,1772199049421,-800.0,0.00040405,13]
[406797156,1772199049431,-800.0,0.00040405,13]
[406797157,1772199049440,-800.0,0.00040405,13]
[406797158,1772199049450,-800.0,0.00040405,13]
[406797159,1772199049459,-800.0,0.00040405,13]
[406797160,1772199049468,-800.0,0.00040405,13]
[406797161,1772199049478,-800.0,0.00040405,13]
[406797162,1772199049487,-800.0,0.00040405,13]
[406797163,1772199049496,-800.0,0.00040405,13]
[406797164,1772199049506,-800.0,0.00040405,13]
[406797165,1772199049518,-800.0,0.00040405,13]
[406797166,1772199049527,-800.0,0.00040405,13]
[406797167,1772199049536,-800.0,0.00040405,13]
[406797168,1772199049546,-800.0,0.00040405,13]
[406797169,1772199049555,-800.0,0.00040405,13]
[406797170,1772199049564,-800.0,0.00040405,13]
[406797171,1772199049573,-800.0,0.00040405,13]
[406797172,1772199049582,-433.0,0.00040405,13]
[406797173,1772199049592,-500.0,0.00040425,120]
[406797174,1772199049601,-500.0,0.00040425,45]
[406797175,1772199049611,-500.0,0.00040425,120]
[406797176,1772199049620,-1000.0,0.00040426,60]
[406797177,1772199049630,-12152.0,0.00040537,5]
[406797178,1772199049639,-1060.37,0.000406,14]
[406797179,1772199049649,-2000.0,0.000406,7]
[406797180,1772199049658,-151.0,0.000407,120]
[406797181,1772199049668,-151.0,0.000407,120]
[406797182,1772199049677,-82095.61801107,0.000407,6]
[406797183,1772199049686,-1000.0,0.0004077,3]
[406797184,1772199049695,-500.0,0.0004077,3]
[406797185,1772199049705,-390.0,0.000408,10]
[406797186,1772199049714,-1040.2,0.00040831,30]
[406797187,1772199049723,-500.0,0.00040855,120]
[406797188,1772199049732,-500.0,0.00040949,120]
[406797189,1772199049742,-500.0,0.0004098,30]
[406797190,1772199049752,-500.0,0.0004098,30]
[406797191,1772199049763,-500.0,0.0004098,120]
[406797192,1772199049773,-500.0,0.0004098,120]
[406797193,1772199049783,-2473.82123685,0.00041,30]
[406797194,1772199049792,-18702.22951503,0.00041,120]
[406797195,1772199049801,-1000.0,0.00041054,60]
[406797196,1772199049810,-300.0,0.00041096,10]
[406797197,1772199049820,-150.0,0.00041096,10]
[406797198,1772199049829,-1258.86,0.00041096,120]
[406797199,1772199049838,-151.0,0.00041096,120]
[406797200,1772199049847,-151.0,0.00041096,120]
[406797201,1772199049859,-293.127638,0.00041096,120]
[406797202,1772199049869,-293.127638,0.00041096,120]
[406797203,1772199049878,-209.530359,0.00041096,120]
[406797204,1772199049888,-293.127638,0.00041096,120]
[406797205,1772199049897,-293.127638,0.00041096,120]
[406797206,1772199049907,-151.0,0.00041096,120]
[406797207,1772199049916,-151.0,0.00041096,120]
[406797208,1772199049925,-151.0,0.00041096,120]
[406797209,1772199049935,-151.0,0.00041096,120]
[406797210,1772199049944,-183.915876,0.00041096,120]
[406797211,1772199049953,-180.898308,0.00041096,120]
[406797212,1772199049963,-342.24787,0.00041096,120]
[406797213,1772199049972,-342.24787,0.00041096,120]
[406797214,1772199049982,-342.24787,0.00041096,120]
[406797215,1772199049991,-342.24787,0.00041096,120]
[406797216,1772199050000,-151.0,0.00041096,120]
[406797217,1772199050011,-224.302244,0.00041096,120]
[406797218,1772199050020,-151.0,0.00041096,120]
[406797219,1772199050029,-151.0,0.00041096,120]
[406797220,1772199050039,-151.0,0.00041096,120]
[406797221,1772199050048,-151.0,0.00041096,120]
[406797222,1772199050057,-151.0,0.00041096,120]
[406797223,1772199050066,-240.315231,0.00041096,30]
[406797224,1772199050076,-191.733522,0.00041096,120]
[406797225,1772199050085,-240.315231,0.00041096,30]
[406797226,1772199050095,-241.889116,0.00041096,120]
[406797227,1772199050106,-240.315231,0.00041096,30]
[406797228,1772199050115,-240.315231,0.00041096,30]
[406797229,1772199050124,-160.119633,0.00041096,120]
[406797230,1772199050135,-151.0,0.00041096,120]
[406797231,1772199050144,-151.0,0.00041096,120]
[406797232,1772199050153,-151.0,0.00041096,120]
[406797233,1772199050163,-151.0,0.00041096,120]
[406797234,1772199050173,-300.0,0.00041096,30]
[406797235,1772199050182,-196.450597,0.00041096,120]
[406797236,1772199050191,-151.0,0.00041096,120]
[406797237,1772199050201,-151.0,0.00041096,60]
[406797238,1772199050210,-382.023533,0.00041096,120]
[406797239,1772199050220,-382.023533,0.00041096,120]
[406797240,1772199050230,-382.023533,0.00041096,120]
[406797241,1772199050239,-151.0,0.00041096,120]
[406797242,1772199050249,-151.0,0.00041096,120]
[406797243,1772199050258,-382.023533,0.00041096,120]
[406797244,1772199050267,-151.0,0.00041096,120]
[406797245,1772199050277,-300.0,0.00041096,2]
[406797246,1772199050286,-151.0,0.00041096,120]
[406797247,1772199050295,-151.0,0.00041096,120]
[406797248,1772199050305,-300.0,0.00041096,2]
[406797249,1772199050314,-151.0,0.00041096,120]
[406797250,1772199050323,-151.0,0.00041096,120]
[406797251,1772199050332,-258.007832,0.00041096,120]
[406797252,1772199050341,-300.0,0.00041096,2]
[406797253,1772199050351,-151.0,0.00041096,120]
[406797254,1772199050360,-151.0,0.00041096,120]
[406797255,1772199050370,-300.0,0.00041096,2]
[406797256,1772199050379,-151.0,0.00041096,120]
[406797257,1772199050390,-151.0,0.00041096,120]
[406797258,1772199050399,-151.0,0.00041096,120]
[406797259,1772199050412,-151.0,0.00041096,120]
[406797260,1772199050422,-151.0,0.00041096,120]
[406797261,1772199050432,-151.0,0.00041096,120]
[406797262,1772199050443,-151.0,0.00041096,120]
[406797263,1772199050454,-162.934635,0.00041096,120]
[406797264,1772199050464,-556.15811,0.00041096,120]
[406797265,1772199050474,-556.15811,0.00041096,120]
[406797266,1772199050484,-556.15811,0.00041096,120]
[406797267,1772199050493,-556.15811,0.00041096,120]
[406797268,1772199050503,-151.0,0.00041096,120]
[406797269,1772199050515,-159.305684,0.00041096,120]
[406797270,1772199050525,-151.0,0.00041096,120]
[406797271,1772199050535,-151.0,0.00041096,120]
[406797272,1772199050545,-151.0,0.00041096,120]
[406797273,1772199050554,-559.386811,0.00041096,15]
[406797274,1772199050563,-559.386811,0.00041096,15]
[406797275,1772199050573,-559.386811,0.00041096,15]
[406797276,1772199050582,-559.386811,0.00041096,15]
[406797277,1772199050592,-151.0,0.00041096,30]
[406797278,1772199050602,-151.0,0.00041096,30]
[406797279,1772199050611,-151.0,0.00041096,30]
[406797280,1772199050621,-151.0,0.00041096,30]
[406797281,1772199050631,-346.81,0.00041096,120]
[406797282,1772199050641,-151.0,0.00041096,120]
[406797283,1772199050650,-151.0,0.00041096,120]
[406797284,1772199050660,-151.0,0.00041096,120]
[406797285,1772199050670,-151.0,0.00041096,120]
[406797286,1772199050680,-151.0,0.00041096,120]
[406797287,1772199050690,-151.0,0.00041096,120]
[406797288,1772199050700,-212.212283,0.00041096,120]
[406797289,1772199050710,-204.829574,0.00041096,120]
[406797290,1772199050720,-387.063149,0.00041096,120]
[406797291,1772199050730,-387.063149,0.00041096,120]
[406797292,1772199050740,-582.674736,0.00041096,14]
[406797293,1772199050750,-387.063149,0.00041096,120]
[406797294,1772199050760,-582.674736,0.00041096,14]
[406797295,1772199050770,-387.063149,0.00041096,120]
[406797296,1772199050779,-713.561992,0.00041096,120]
[406797297,1772199050789,-582.674736,0.00041096,14]
[406797298,1772199050799,-713.561992,0.00041096,120]
[406797299,1772199050812,-582.674736,0.00041096,14]
[406797300,1772199050822,-713.561992,0.00041096,120]
[406797301,1772199050831,-713.561992,0.00041096,120]
[406797302,1772199050841,-151.0,0.00041096,120]
[406797303,1772199050851,-151.0,0.00041096,120]
[406797304,1772199050860,-151.0,0.00041096,120]
[406797305,1772199050870,-151.0,0.00041096,120]
[406797306,1772199051030,-282.619722,0.00041096,120]
[406797307,1772199051040,-282.619722,0.00041096,120]
[406797308,1772199051050,-282.619722,0.00041096,120]
[406797309,1772199051060,-151.0,0.00041096,90]
[406797310,1772199051069,-282.619722,0.00041096,120]
[406797311,1772199051079,-151.0,0.00041096,90]
[406797312,1772199051088,-151.0,0.00041096,90]
[406797313,1772199051098,-226.997164,0.00041096,90]
[406797314,1772199051110,-161.084888,0.00041096,120]
[406797315,1772199051119,-151.0,0.00041096,120]
[406797316,1772199051128,-291.514579,0.00041096,120]
[406797317,1772199051139,-161.084888,0.00041096,120]
[406797318,1772199051151,-151.0,0.00041096,120]
[406797319,1772199051160,-161.084888,0.00041096,120]
[406797320,1772199051170,-151.0,0.00041096,35]
[406797321,1772199051181,-185.234928,0.00041096,120]
[406797322,1772199051191,-164.996573,0.00041096,120]
[406797323,1772199051200,-161.084888,0.00041096,120]
[406797324,1772199051210,-151.0,0.00041096,120]
[406797325,1772199051219,-151.0,0.00041096,31]
[406797326,1772199051228,-151.0,0.00041096,120]
[406797327,1772199051238,-284.765925,0.00041096,120]
[406797328,1772199051247,-414.062564,0.00041096,120]
[406797329,1772199051256,-202.457429,0.00041096,120]
[406797330,1772199051267,-414.062564,0.00041096,120]
[406797331,1772199051277,-202.457429,0.00041096,120]
[406797332,1772199051287,-414.062564,0.00041096,120]
[406797333,1772199051295,-156.0,0.00041174,14]
[406797334,1772199051305,-176.0,0.00041174,14]
[406797335,1772199051314,-291.85,0.00041384,120]
[406797336,1772199051323,-5800.0,0.00041388,14]
[406797337,1772199051333,-5800.0,0.00041396,14]
[406797338,1772199051342,-152.0,0.000414,120]
[406797339,1772199051352,-5800.0,0.00041401,14]
[406797340,1772199051361,-1003.13949046,0.00041454,50]
[406797341,1772199051371,-1041.53212253,0.00041454,50]
[406797342,1772199051380,-1098.96274106,0.00041454,50]
[406797343,1772199051389,-1002.70773698,0.00041454,50]
[406797344,1772199051399,-1093.84943116,0.00041454,50]
[406797345,1772199051409,-1102.61528565,0.00041454,50]
[406797346,1772199051419,-1091.44870352,0.00041454,50]
[406797347,1772199051428,-300.0,0.00041464,30]
[406797348,1772199051436,-1031.83297891,0.00041465,50]
[406797349,1772199051446,-1078.9695711,0.00041465,50]
[406797350,1772199051455,-1053.99994549,0.00041465,50]
[406797351,1772199051464,-1026.55971978,0.00041465,50]
[406797352,1772199051474,-1004.723414,0.00041465,50]
[406797353,1772199051483,-1123.70930899,0.00041465,50]
[406797354,1772199051492,-1026.04749619,0.00041465,50]
[406797355,1772199051502,-1147.63592574,0.00041465,50]
[406797356,1772199051515,-1097.21418358,0.00041465,50]
[406797357,1772199051524,-1118.97468166,0.00041465,50]
[406797358,1772199051533,-1102.93303911,0.00041465,50]
[406797359,1772199051546,-1031.02384122,0.00041465,50]
[406797360,1772199051555,-1120.49284993,0.00041465,50]
[406797361,1772199051564,-1008.11279929,0.00041465,50]
[406797362,1772199051573,-1054.30313759,0.00041465,50]
[406797363,1772199051583,-1059.64080032,0.00041465,50]
[406797364,1772199051592,-1098.53460429,0.00041465,50]
[406797365,1772199051602,-1131.75421394,0.00041465,50]
[406797366,1772199051611,-1059.19724402,0.00041465,50]
[406797367,1772199051620,-1634.47481908,0.00041465,50]
[406797368,1772199051630,-292.662132,0.00041465,120]
[406797369,1772199051639,-292.662132,0.00041465,120]
[406797370,1772199051648,-185.644654,0.00041465,120]
[406797371,1772199051658,-292.662132,0.00041465,120]
[406797372,1772199051667,-292.662132,0.00041465,120]
[406797373,1772199051676,-151.000023,0.00041465,120]
[406797374,1772199051686,-589.577647,0.00041465,120]
[406797375,1772199051695,-589.577647,0.00041465,120]
[406797376,1772199051704,-178.227243,0.00041465,120]
[406797377,1772199051714,-151.0,0.00041465,120]
[406797378,1772199051723,-589.577647,0.00041465,120]
[406797379,1772199051732,-589.577647,0.00041465,120]
[406797380,1772199051741,-151.0,0.00041465,120]
[406797381,1772199051750,-151.0,0.00041465,120]
[406797382,1772199051761,-151.0,0.00041465,120]
[406797383,1772199051770,-856.45675791,0.00041482,2]
[406797384,1772199051779,-306.29679311,0.00041482,2]
[406797385,1772199051788,-852.28136836,0.00041482,2]
[406797386,1772199051797,-961.30757909,0.00041482,2]
[406797387,1772199051820,-603.96129473,0.00041482,2]
[406797388,1772199051830,-307.55492962,0.00041482,2]
[406797389,1772199051839,-300.0,0.00041482,2]
[406797390,1772199051848,-165.48358326,0.00041482,2]
[406797391,1772199051859,-134.51641674,0.00041482,2]
[406797392,1772199051869,-459.19979016,0.00041482,2]
[406797393,1772199051878,-300.0,0.00041482,2]
[406797394,1772199051887,-300.0,0.00041482,2]
[406797395,1772199051896,-371.72919772,0.00041482,2]
[406797396,1772199051906,-300.0,0.00041482,2]
[406797397,1772199051916,-300.0,0.00041482,2]
[406797398,1772199051927,-9.12694085,0.00041482,2]
[406797399,1772199051939,-509.92140671,0.00041482,2]
[406797400,1772199051949,-306.51036434,0.00041482,2]
[406797401,1772199051958,-291.97397851,0.00041482,2]
[406797402,1772199051984,-202.457429,0.00041096,120]
[406797403,1772199051994,-8.02602149,0.00041482,2]
[406797404,1772199052003,-300.0,0.00041482,2]
[406797405,1772199052014,-197.39790352,0.00041482,2]
[406797406,1772199052226,-1085.72158937,0.00035423,20]
[406797407,1772199052235,-607.0,0.0003606,30]
[406797408,1772199052246,-414.062564,0.00041096,120]
[406797409,1772199052255,-202.457429,0.00041096,120]
[406797410,1772199052265,-208.18821796,0.00041482,2]
[406797411,1772199052275,-300.0,0.00041482,2]
[406797412,1772199052285,-300.0,0.00041482,2]
[406797413,1772199052294,-300.0,0.00041482,2]
[406797414,1772199052304,-1083.06069021,0.00041482,2]
[406797415,1772199052313,-300.0,0.00041482,2]
[406797416,1772199052323,-856.45675791,0.00041482,2]
[406797417,1772199052334,-306.29679311,0.00041482,2]
[406797418,1772199052343,-852.28136836,0.00041482,2]
[406797419,1772199052353,-1565.26887382,0.00041482,2]
[406797420,1772199052363,-307.55492962,0.00041482,2]
[406797421,1772199052372,-300.0,0.00041482,2]
[406797422,1772199052381,-300.0,0.00041482,2]
[406797423,1772199052390,-459.19979016,0.00041482,2]
[406797424,1772199052399,-300.0,0.00041482,2]
[406797425,1772199052408,-368.08561276,0.00041482,2]
[406797426,1772199052419,-371.72919772,0.00041482,2]
[406797427,1772199052428,-300.0,0.00041482,2]
[406797428,1772199052438,-300.0,0.00041482,2]
[406797429,1772199052447,-519.04834756,0.00041482,2]
[406797430,1772199052456,-306.51036434,0.00041482,2]
[406797431,1772199052466,-300.0,0.00041482,2]
[406797432,1772199052476,-300.0,0.00041482,2]
[406797433,1772199052485,-405.58612148,0.00041482,2]
[406797434,1772199052495,-300.0,0.00041482,2]
[406797435,1772199052504,-300.0,0.00041482,2]
[406797436,1772199052514,-1083.06069021,0.00041482,2]
[406797437,1772199052524,-300.0,0.00041482,2]
[406797438,1772199052534,-4467.42,0.000415,14]
[406797439,1772199052543,-2581.07500228,0.000415,14]
[406797440,1772199052566,-617.79943091,0.00036146,30]
[406797441,1772199555799,2862.16,5.802e-05,2]
[406797442,1772199555982,2862.16,6.052e-05,2]
[406797443,1772199556464,2862.16,6.301e-05,2]
[406797444,1772199556693,1413.53,6.551e-05,2]
[406797445,1772199556716,1448.63,6.551e-05,2]
[406797446,1772199556907,2862.16,6.801e-05,2]
[406797447,1772199557127,2862.16,7.051e-05,2]
[406797448,1772199557320,2827.06,7.301e-05,2]
[406797449,1772199557342,35.1,7.301e-05,2]
[406797450,1772199557523,2862.16,7.551e-05,2]
[406797451,1772199557740,2862.16,7.8e-05,2]
[406797452,1772199557935,2862.16,8.05e-05,2]
[406797454,1772199651782,150.0,0.00011233,120]
[406797455,1772199781233,331.89499648,7e-05,2]
[406797456,1772199962894,150.0,9e-05,10]
[406797457,1772199980546,300.0,8.183e-05,2]
[406797458,1772200030155,400.0,8.8e-05,3]
[406797459,1772200032337,900.0,8.9e-05,3]
[406797460,1772200034377,1300.0,9e-05,3]
[406797468,1772200231637,-250.0,8.3e-05,2]
[406797469,1772200231647,-195.0,8.3e-05,2]
[406797470,1772200231659,-2862.16,8.3e-05,2]
[406797471,1772200231668,-195.0,8.372e-05,2]
[406797472,1772200231678,-591.78587716,8.4e-05,2]
[406797473,1772200231688,-200.0,8.427e-05,2]
[406797474,1772200231698,-3397.72,8.434e-05,2]
[406797475,1772200231708,-1235.6,8.451e-05,2]
[406797476,1772200231718,-84.33795526,8.55e-05,2]
[406797477,1772200231748,-2777.82204474,8.55e-05,2]
[406797478,1772200231758,-2862.16,8.8e-05,2]
[406797479,1772200231768,-591.78587716,8.924e-05,2]
[406797480,1772200231778,-2862.16,9.05e-05,2]
[406797481,1772200231789,-5000.0,9.13e-05,2]
[406797482,1772200231799,-250.0,9.13e-05,2]
[406797483,1772200231809,-4724.25066373,9.13e-05,2]
[406797484,1772200231819,-195.0,9.13e-05,2]
[406797485,1772200231829,-151.0,9.196e-05,2]
[406797486,1772200231839,-151.0,9.196e-05,2]
[406797487,1772200231848,-500.0,9.198e-05,2]
[406797488,1772200231858,-500.0,9.198e-05,2]
[406797489,1772200231869,-500.0,9.198e-05,2]
[406797490,1772200231878,-500.0,9.198e-05,2]
[406797491,1772200231888,-160.88049104,9.198e-05,2]
[406797492,1772200231898,-235.50645071,9.198e-05,2]
[406797493,1772200231908,-500.0,9.198e-05,2]
[406797497,1772200232122,-500.0,9.198e-05,2]
[406797498,1772200232131,-500.0,9.198e-05,2]
[406797499,1772200232142,-500.0,9.198e-05,2]
[406797500,1772200232151,-500.0,9.198e-05,2]
[406797501,1772200232162,-500.0,9.198e-05,2]
[406797502,1772200232172,-500.0,9.198e-05,2]
[406797503,1772200232182,-500.0,9.198e-05,2]
[406797504,1772200232191,-500.0,9.198e-05,2]
[406797505,1772200232200,-500.0,9.198e-05,2]
[406797506,1772200232218,-500.0,9.198e-05,2]
[406797507,1772200232230,-500.0,9.198e-05,2]
[406797508,1772200232240,-500.0,9.198e-05,2]
[406797509,1772200232250,-500.0,9.198e-05,2]
[406797510,1772200232260,-500.0,9.198e-05,2]
[406797511,1772200232270,-500.0,9.198e-05,2]
[406797512,1772200232279,-500.0,9.198e-05,2]
[406797513,1772200232289,-500.0,9.198e-05,2]
[406797514,1772200232298,-500.0,9.198e-05,2]
[406797515,1772200232308,-500.0,9.198e-05,2]
[406797516,1772200232317,-500.0,9.198e-05,2]
[406797517,1772200232327,-500.0,9.198e-05,2]
[406797518,1772200232337,-500.0,9.198e-05,2]
[406797519,1772200232347,-500.0,9.198e-05,2]
[406797520,1772200232357,-500.0,9.198e-05,2]
[406797521,1772200232367,-500.0,9.198e-05,2]
[406797522,1772200232377,-500.0,9.198e-05,2]
[406797523,1772200232386,-500.0,9.198e-05,2]
[406797524,1772200232396,-161.5849281,9.198e-05,2]
[406797525,1772200232406,-500.0,9.198e-05,2]
[406797526,1772200232416,-500.0,9.198e-05,2]
[406797527,1772200232431,-500.0,9.198e-05,2]
[406797528,1772200232440,-500.0,9.198e-05,2]
[406797529,1772200232450,-500.0,9.198e-05,2]
[406797530,1772200232461,-500.0,9.198e-05,2]
[406797531,1772200232471,-500.0,9.198e-05,2]
[406797532,1772200232481,-500.0,9.198e-05,2]
[406797533,1772200232492,-500.0,9.198e-05,2]
[406797534,1772200232501,-500.0,9.198e-05,2]
[406797535,1772200232511,-500.0,9.198e-05,2]
[406797536,1772200232521,-500.0,9.198e-05,2]
[406797537,1772200232533,-400.0,9.198e-05,2]
[406797538,1772200232543,-500.0,9.198e-05,2]
[406797539,1772200232552,-500.0,9.198e-05,2]
[406797540,1772200232566,-500.0,9.198e-05,2]
[406797541,1772200232576,-500.0,9.198e-05,2]
[406797542,1772200232586,-500.0,9.198e-05,2]
[406797543,1772200232596,-500.0,9.198e-05,2]
[406797544,1772200232606,-500.0,9.198e-05,2]
[406797545,1772200232615,-500.0,9.198e-05,2]
[406797546,1772200232625,-500.0,9.198e-05,2]
[406797547,1772200232634,-500.0,9.198e-05,2]
[406797548,1772200232644,-500.0,9.198e-05,2]
[406797549,1772200232654,-500.0,9.198e-05,2]
[406797550,1772200232664,-199967.82250201,9.199e-05,2]
[406797551,1772200232677,-1254.41808677,9.199e-05,2]
[406797552,1772200232689,-736.53999749,9.199e-05,2]
[406797553,1772200232702,-968.0495,9.199e-05,2]
[406797554,1772200232714,-428.83006423,9.199e-05,2]
[406797555,1772200232727,-969.80549567,9.199e-05,2]
[406797556,1772200232739,-351.71222012,9.199e-05,2]
[406797557,1772200232765,-3294.45,9.199e-05,2]
[406797558,1772200232778,-19124.97581632,9.199e-05,2]
[406797559,1772200237642,-915.68180285,9.199e-05,2]
[406797560,1772200237653,-1771987.71451454,9.199e-05,2]
[406797561,1772200237663,-2862.16,9.299e-05,2]
[406797562,1772200237672,-2500.0,9.348e-05,2]
[406797563,1772200237682,-827.59786342,9.391e-05,2]
[406797565,1772200237691,-2180.5949905,9.4e-05,2]
[406797566,1772200237700,-272.67490808,9.447e-05,2]
[406797567,1772200237710,-2008.57,9.447e-05,2]
[406797568,1772200237720,-288.717,9.447e-05,2]
[406797569,1772200237730,-591.78587716,9.448e-05,2]
[406797570,1772200237739,-275.5884,9.454e-05,2]
[406797571,1772200237749,-187.0,9.465e-05,2]
[406797572,1772200237758,-232.0,9.486e-05,2]
[406797573,1772200237768,-150.0,9.521e-05,2]
[406797574,1772200237778,-150.0,9.521e-05,2]
[406797575,1772200237788,-151.0,9.545e-05,2]
[406797576,1772200237797,-154.86311374,9.545e-05,2]
[406797577,1772200237807,-500.0,9.547e-05,2]
[406797578,1772200237817,-637.19570717,9.547e-05,2]
[406797579,1772200237827,-569.83248233,9.547e-05,2]
[406797580,1772200237836,-500.0,9.547e-05,2]
[406797581,1772200237846,-500.0,9.547e-05,2]
[406797582,1772200237855,-500.0,9.547e-05,2]
[406797583,1772200237864,-450.93959115,9.547e-05,2]
[406797584,1772200237874,-32885.2992,9.548e-05,2]
[406797585,1772200237883,-1000.0,9.548e-05,2]
[406797586,1772200237893,-1500000.0,9.548e-05,2]
[406797587,1772200237902,-1337.16339586,9.548e-05,2]
[406797588,1772200237911,-2862.16,9.549e-05,2]
[406797589,1772200237920,-150.0,9.562e-05,2]
[406797590,1772200237930,-150.0,9.562e-05,2]
[406797591,1772200237939,-468.0,9.562e-05,2]
[406797592,1772200237948,-150.0,9.562e-05,2]
[406797593,1772200237957,-626.76965464,9.567e-05,2]
[406797594,1772200237967,-283.90698305,9.576e-05,2]
[406797595,1772200237976,-150.0,9.617e-05,2]
[406797596,1772200237985,-150.0,9.617e-05,2]
[406797597,1772200237995,-468.0,9.617e-05,2]
[406797598,1772200238004,-150.0,9.617e-05,2]
[406797600,1772200238014,-177.0,9.672e-05,2]
[406797604,1772200238206,-200.0,9.672e-05,2]
[406797605,1772200238216,-468.0,9.672e-05,2]
[406797606,1772200238225,-200.0,9.672e-05,2]
[406797607,1772200238235,-150.0,9.726e-05,2]
[406797608,1772200238244,-500.0,9.726e-05,2]
[406797609,1772200238253,-468.0,9.726e-05,2]
[406797610,1772200238263,-150.0,9.781e-05,2]
[406797611,1772200238272,-560.0,9.781e-05,2]
[406797612,1772200238281,-468.0,9.781e-05,2]
[406797613,1772200238290,-2862.16,9.799e-05,2]
[406797614,1772200238299,-150.0,9.836e-05,2]
[406797615,1772200238307,-468.0,9.836e-05,2]
[406797616,1772200238317,-150.0,9.89e-05,2]
[406797617,1772200238326,-468.0,9.891e-05,2]
[406797619,1772200238335,-150.0,9.945e-05,2]
[406797620,1772200238344,-468.0,9.946e-05,2]
[406797622,1772200238353,-250.0,0.0001,2]
[406797624,1772200238362,-292.42,0.0001,2]
[406797626,1772200238372,-733.65733193,0.0001,2]
[406797628,1772200238381,-151.0,0.0001,2]
[406797630,1772200238390,-151.0,0.0001,2]
[406797632,1772200238398,-151.0,0.0001,2]
[406797633,1772200238407,-151.0,0.0001,2]
[406797634,1772200238416,-151.0,0.0001,2]
[406797635,1772200238429,-151.0,0.0001,2]
[406797636,1772200238438,-151.0,0.0001,2]
[406797637,1772200238448,-151.0,0.0001,2]
[406797638,1772200238456,-151.0,0.0001,2]
[406797639,1772200238467,-151.0,0.0001,2]
[406797640,1772200238476,-151.0,0.0001,2]